fUST/lending_fUST_20250421
["ID","MTS","AMOUNT","RATE_DAILY","PERIOD"]
[358552703,1745247473908,-757.95,0.00050684,62]
[358552704,1745247473947,-500.0,0.00050692,120]
[358552705,1745247473986,-200.0,0.00050711,120]
[358552706,1745247474027,-500.0,0.00050712,120]
[358552707,1745247474067,-200.0,0.00050874,120]
[358552708,1745247474109,-500.0,0.00050892,120]
[358552709,1745247474148,-200.0,0.000509,84]
[358552710,1745247474188,-200.0,0.000509,84]
[358552711,1745247474229,-757.95,0.00050958,64]
[358552712,1745247474270,-200.0,0.00051,85]
[358552713,1745247474310,-1871.859653,0.00051,85]
[358552714,1745247474351,-500.0,0.00051092,120]
[358552715,1745247474389,-757.95,0.00051232,66]
[358552716,1745247474430,-500.0,0.0005126,120]
[358552717,1745247474470,-500.0,0.00051292,120]
[358552718,1745247474512,-500.0,0.00051492,120]
[358552719,1745247474551,-757.95,0.00051506,68]
[358552720,1745247474591,-200.0,0.00051605,120]
[358552721,1745247474631,-500.0,0.00051692,120]
[358552722,1745247474670,-757.95,0.0005178,70]
[358552723,1745247474709,-500.0,0.00051808,120]
[358552724,1745247474747,-345.10572807,0.0005188,30]
[358552725,1745247474786,-500.0,0.00051892,120]
[358552726,1745247474825,-200.0,0.000519,88]
[358552727,1745247474862,-200.0,0.000519,88]
[358552728,1745247474901,-200.0,0.00052,89]
[358552729,1745247474938,-300.0,0.00052,120]
[358552730,1745247474977,-10000.0,0.00052,30]
[358552731,1745247475016,-757.95,0.00052054,72]
[358552732,1745247475143,500.0,0.00051755,30]
[358552733,1745247475187,500.0,0.00051755,30]
[358552734,1745247475243,500.0,0.00051755,30]
[358552735,1745247475289,500.0,0.00051755,30]
[358552736,1745247475330,500.0,0.00051755,30]
[358552737,1745247475374,500.0,0.00051755,30]
[358552738,1745247475418,500.0,0.00051755,30]
[358552739,1745247475468,500.0,0.00051755,30]
[358552740,1745247475513,500.0,0.00051755,30]
[358552741,1745247475559,500.0,0.00051755,30]
[358552742,1745247475605,500.0,0.00051755,30]
[358552743,1745247475652,592.435436,0.00051755,30]
[358552744,1745247475835,151.0,0.00044,120]
[358552745,1745247483304,151.0,0.00045,120]
[358552746,1745247483687,151.0,0.00045137,120]
[358552747,1745247483994,151.0,0.00045137,120]
[358552748,1745247485602,155.12949086,0.00052,30]
[358552749,1745247485683,200.0,0.00052054,72]
[358552750,1745247486304,207.4,0.00052054,72]
[358552751,1745247487566,215.0738,0.00052054,72]
[358552752,1745247488211,223.0315306,0.00052054,72]
[358552753,1745247488868,231.28369723,0.00052054,72]
[358552758,1745247489494,239.84119403,0.00052054,72]
[358552759,1745247490049,1610.16,0.000329,30]
[358552760,1745247490346,1610.16,0.00037,30]
[358552761,1745247490377,2200.0,0.00052054,30]
[358552762,1745247490520,248.71531821,0.00052054,72]
[358552763,1745247490683,1610.16,0.000397,30]
[358552764,1745247490975,1610.16,0.000426,30]
[358552765,1745247491174,269.9707627,0.00052054,72]
[358552766,1745247491274,1610.16,0.000456,30]
[358552767,1745247491603,1610.16,0.000489,30]
[358552768,1745247492579,151.0,0.00045,120]
[358552770,1745247507216,151.0,0.00045,120]
[358552771,1745247507464,164.92132,0.00045137,120]
[358552860,1745248232325,-811.2630305,0.00020727,2]
[358552861,1745248232335,-291.5028963,0.0002087,2]
[358552862,1745248232345,-300.0,0.00021531,2]
[358552863,1745248232354,-300.0,0.00021531,2]
[358552864,1745248232363,-2837.2764544,0.00021532,2]
[358552865,1745248232374,-3209.2813042,0.00021532,2]
[358552866,1745248232383,-5894.36341938,0.00021579,2]
[358552867,1745248232392,-194.4696633,0.00021679,2]
[358552868,1745248232402,-196.56654,0.00021732,2]
[358552869,1745248232411,-50000.0,0.00021916,2]
[358552870,1745248232422,-320.67080155,0.00021916,2]
[358552871,1745248232432,-500.0,0.00021916,2]
[358552873,1745248232446,-500.0,0.00021916,2]
[358552875,1745248232456,-500.0,0.00021916,2]
[358552877,1745248232466,-500.0,0.00021916,2]
[358552879,1745248232476,-500.0,0.00021916,2]
[358552881,1745248232487,-500.0,0.00021916,2]
[358552883,1745248232496,-581.13813406,0.00021916,2]
[358552885,1745248232505,-500.0,0.00021917,2]
[358552887,1745248232516,-500.0,0.00021917,2]
[358552889,1745248232525,-500.0,0.00021917,2]
[358552891,1745248232534,-500.0,0.00021917,2]
[358552893,1745248232544,-500.0,0.00021917,2]
[358552895,1745248232554,-500.0,0.00021917,2]
[358552897,1745248232564,-1870.65,0.00021917,2]
[358552899,1745248232573,-500.0,0.00021917,2]
[358552901,1745248232583,-500.0,0.00021917,2]
[358552904,1745248232592,-500.0,0.00021917,2]
[358552907,1745248232601,-500.0,0.00021917,2]
[358552909,1745248232611,-500.0,0.00021917,2]
[358552912,1745248232620,-280.08190923,0.0002198,2]
[358552915,1745248232630,-300.000001,0.0002215,2]
[358552918,1745248232640,-500.0,0.00022191,2]
[358552921,1745248232649,-500.0,0.00022191,2]
[358552923,1745248232658,-500.0,0.00022191,2]
[358552924,1745248232668,-500.0,0.00022191,2]
[358552926,1745248232681,-500.0,0.00022191,2]
[358552927,1745248232690,-500.0,0.00022191,2]
[358552929,1745248232700,-1870.65,0.00022191,2]
[358552931,1745248232709,-500.0,0.00022191,2]
[358552932,1745248232718,-500.0,0.00022191,2]
[358552934,1745248232729,-457.02,0.00022191,2]
[358552936,1745248232738,-500.0,0.00022191,2]
[358552937,1745248232747,-500.0,0.00022191,2]
[358552939,1745248232757,-500.0,0.00022465,2]
[358552941,1745248232768,-500.0,0.00022465,2]
[358552942,1745248232777,-500.0,0.00022465,2]
[358552944,1745248232787,-500.0,0.00022465,2]
[358552946,1745248232796,-500.0,0.00022465,2]
[358552947,1745248232815,-1870.65,0.00022465,2]
[358552949,1745248232826,-500.0,0.00022465,2]
[358552950,1745248232835,-500.0,0.00022465,2]
[358552952,1745248232845,-500.0,0.00022465,2]
[358552954,1745248232854,-500.0,0.00022465,2]
[358552957,1745248233018,-500.0,0.00022525,2]
[358552958,1745248233036,-500.0,0.00022525,2]
[358552959,1745248233046,-500.0,0.00022525,2]
[358552960,1745248233056,-500.0,0.00022525,2]
[358552961,1745248233067,-300.0,0.00022525,2]
[358552962,1745248233077,-224.03593764,0.00022525,2]
[358552963,1745248233087,-500.0,0.00022525,2]
[358552964,1745248233098,-212.34931571,0.00022562,2]
[358552965,1745248233108,-1014.45,0.00022738,2]
[358552966,1745248233118,-500.0,0.00022739,2]
[358552967,1745248233128,-500.0,0.00022739,2]
[358552968,1745248233138,-158.96,0.00022739,2]
[358552969,1745248233148,-500.0,0.00022739,2]
[358552970,1745248233158,-1870.65,0.00022739,2]
[358552971,1745248233168,-500.0,0.00022739,2]
[358552972,1745248233179,-500.0,0.00022739,2]
[358552973,1745248233189,-500.0,0.00022739,2]
[358552974,1745248233198,-500.0,0.00022739,2]
[358552975,1745248233209,-500.0,0.00022927,2]
[358552976,1745248233219,-500.0,0.00022927,2]
[358552977,1745248233229,-500.0,0.00022927,2]
[358552978,1745248233239,-500.0,0.00022927,2]
[358552979,1745248233249,-500.0,0.00022927,2]
[358552980,1745248233259,-1014.45,0.00023012,2]
[358552981,1745248233269,-500.0,0.00023013,2]
[358552982,1745248233279,-500.0,0.00023013,2]
[358552983,1745248233289,-500.0,0.00023013,2]
[358552984,1745248233299,-1870.65,0.00023013,2]
[358552985,1745248233309,-500.0,0.00023013,2]
[358552986,1745248233319,-500.0,0.00023013,2]
[358552987,1745248233329,-500.0,0.00023013,2]
[358552988,1745248233339,-500.0,0.00023013,2]
[358552989,1745248233349,-250.00000001,0.00023187,2]
[358552990,1745248233360,-1014.45,0.00023286,2]
[358552991,1745248233369,-500.0,0.00023287,2]
[358552992,1745248233379,-500.0,0.00023287,2]
[358552993,1745248233389,-500.0,0.00023287,2]
[358552994,1745248233399,-1870.65,0.00023287,2]
[358552995,1745248233409,-500.0,0.00023287,2]
[358552996,1745248233419,-500.0,0.00023287,2]
[358552997,1745248233429,-500.0,0.00023287,2]
[358552998,1745248233443,-420.0,0.00023408,2]
[358552999,1745248233453,-300.0,0.000235,2]
[358553000,1745248233467,-420.0,0.00023518,2]
[358553001,1745248233479,-1014.45,0.0002356,2]
[358553002,1745248233488,-500.0,0.00023561,2]
[358553003,1745248233498,-500.0,0.00023561,2]
[358553004,1745248233508,-500.0,0.00023561,2]
[358553005,1745248233521,-1870.65,0.00023561,2]
[358553006,1745248233531,-500.0,0.00023561,2]
[358553007,1745248233541,-500.0,0.00023561,2]
[358553008,1745248233552,-500.0,0.00023561,2]
[358553009,1745248233562,-1014.45,0.00023834,2]
[358553010,1745248233572,-186.87,0.00023835,2]
[358553011,1745248233583,-500.0,0.00023835,2]
[358553012,1745248233593,-500.0,0.00023835,2]
[358553013,1745248233603,-1870.65,0.00023835,2]
[358553014,1745248233613,-500.0,0.00023835,2]
[358553015,1745248233623,-500.0,0.00023835,2]
[358553016,1745248233632,-500.0,0.00023835,2]
[358553017,1745248233642,-1014.45,0.00024108,2]
[358553018,1745248233652,-500.0,0.00024109,2]
[358553019,1745248233662,-500.0,0.00024109,2]
[358553020,1745248233672,-1870.65,0.00024109,2]
[358553021,1745248233682,-500.0,0.00024109,2]
[358553022,1745248233692,-600.0,0.00024169,2]
[358553023,1745248233702,-160.0,0.00024222,2]
[358553024,1745248233712,-160.0,0.00024222,2]
[358553025,1745248233722,-420.65680271,0.00024222,2]
[358553026,1745248233732,-160.0,0.00024222,2]
[358553027,1745248233742,-389.35404696,0.00024283,2]
[358553028,1745248233752,-1014.45,0.00024382,2]
[358553029,1745248233762,-641.03,0.00024383,2]
[358553030,1745248233772,-500.0,0.00024383,2]
[358553031,1745248233782,-1870.65,0.00024383,2]
[358553032,1745248233792,-302.36,0.00024383,2]
[358553033,1745248233802,-1014.45,0.00024656,2]
[358553034,1745248233812,-500.0,0.00024657,2]
[358553035,1745248233823,-1870.65,0.00024657,2]
[358553036,1745248233833,-200.0,0.00024658,15]
[358553037,1745248233843,-389.35404693,0.00024751,2]
[358553038,1745248233854,-500.0,0.00024873,2]
[358553039,1745248233864,-500.0,0.00024873,2]
[358553040,1745248233874,-500.0,0.00024873,2]
[358553041,1745248233884,-500.0,0.00024873,2]
[358553042,1745248233894,-500.0,0.00024873,2]
[358553043,1745248233904,-500.0,0.00024873,2]
[358553044,1745248233913,-457.323273,0.00024873,2]
[358553045,1745248233926,-500.0,0.00024873,2]
[358553046,1745248233935,-500.0,0.00024873,2]
[358553047,1745248233945,-500.0,0.00024873,2]
[358553048,1745248233955,-500.0,0.00024873,2]
[358553049,1745248233965,-26814.2656024,0.0002489,2]
[358553050,1745248233975,-15138.92658003,0.000249,2]
[358553051,1745248233990,-5102.81172549,0.000249,2]
[358553071,1745248238599,-638.81323159,0.000249,2]
[358553075,1745248238654,-236112.59901489,0.000249,2]
[358553076,1745248238664,-1014.45,0.0002493,2]
[358553077,1745248238674,-642.77,0.00024931,2]
[358553078,1745248238684,-1870.65,0.00024931,2]
[358553079,1745248238694,-506.36,0.00025,2]
[358553080,1745248238703,-1014.45,0.00025204,2]
[358553081,1745248238712,-1870.65,0.00025205,2]
[358553082,1745248238722,-389.35404693,0.0002522,2]
[358553083,1745248238731,-669.14502794,0.00025315,30]
[358553084,1745248238740,-587.0,0.00025449,2]
[358553085,1745248238749,-1014.45,0.00025478,2]
[358553086,1745248238758,-1870.65,0.00025479,2]
[358553087,1745248238768,-389.35404693,0.00025688,2]
[358553088,1745248238778,-587.0,0.00025689,2]
[358553089,1745248238788,-1014.45,0.00025752,2]
[358553090,1745248238797,-1870.65,0.00025753,2]
[358553091,1745248238807,-900.0,0.00025813,2]
[358553092,1745248238816,-1014.45,0.00026026,2]
[358553093,1745248238826,-1870.65,0.00026027,2]
[358553094,1745248238836,-214160.958793,0.00026107,2]
[358553095,1745248238845,-22345.2213353,0.00026107,2]
[358553096,1745248238855,-389.35404693,0.00026156,2]
[358553097,1745248238864,-42832.1917586,0.00026291,2]
[358553098,1745248238874,-4469.04426706,0.00026291,2]
[358553099,1745248238883,-1014.45,0.000263,2]
[358553100,1745248238893,-1870.65,0.00026301,2]
[358553101,1745248238902,-1014.45,0.00026574,2]
[358553102,1745248238911,-1870.65,0.00026575,2]
[358553103,1745248238921,-324.5,0.00026633,15]
[358553104,1745248238932,-151.0,0.000268,12]
[358553105,1745248238941,-1014.45,0.00026848,2]
[358553106,1745248238950,-1870.65,0.00026849,2]
[358553107,1745248238959,-172.85226834,0.00026895,5]
[358553108,1745248238968,-312.84021666,0.00027,3]
[358553109,1745248238977,-312.84021666,0.00027,3]
[358553110,1745248238986,-151.0,0.000271,16]
[358553111,1745248238996,-1014.45,0.00027122,2]
[358553112,1745248239006,-1870.65,0.00027123,2]
[358553113,1745248239015,-128496.575276,0.00027377,2]
[358553114,1745248239025,-22345.2213353,0.00027377,2]
[358553115,1745248239035,-4469.04426706,0.00027387,2]
[358553116,1745248239045,-4469.04426706,0.00027387,2]
[358553117,1745248239055,-1014.45,0.00027396,2]
[358553118,1745248239064,-10000.0,0.00027397,2]
[358553119,1745248239074,-10000.0,0.00027397,3]
[358553120,1745248239084,-10000.0,0.00027397,4]
[358553121,1745248239093,-10000.0,0.00027397,5]
[358553122,1745248239103,-10000.0,0.00027397,6]
[358553123,1745248239112,-3583.25230198,0.00027397,7]
[358553124,1745248239122,-1000.0,0.00027397,5]
[358553125,1745248239131,-1000.0,0.00027397,5]
[358553126,1745248239141,-1000.0,0.00027397,5]
[358553127,1745248239151,-1000.0,0.00027397,5]
[358553128,1745248239161,-1000.0,0.00027397,5]
[358553129,1745248239170,-359.91214918,0.00027397,5]
[358553130,1745248239183,-1870.65,0.00027397,2]
[358553131,1745248239192,-420.65680271,0.00027397,3]
[358553132,1745248239202,-160.0,0.00027397,3]
[358553133,1745248239212,-196.341091,0.00027397,120]
[358553134,1745248239222,-1002.004042,0.00027397,2]
[358553135,1745248239231,-151.0,0.000274,14]
[358553136,1745248239242,-1200.0,0.00027457,5]
[358553137,1745248239252,-823.0,0.00027668,2]
[358553138,1745248239261,-1014.45,0.0002767,2]
[358553139,1745248239271,-1870.65,0.00027671,2]
[358553140,1745248239281,-151.0,0.000278,10]
[358553141,1745248239290,-1014.45,0.00027944,2]
[358553142,1745248239300,-1870.65,0.00027945,2]
[358553143,1745248239310,-370.70491285,0.00027945,5]
[358553144,1745248239320,-1000.0,0.00028004,5]
[358553145,1745248239329,-1000.0,0.00028004,5]
[358553146,1745248239339,-1000.0,0.00028004,5]
[358553147,1745248239349,-1000.0,0.00028004,5]
[358553148,1745248239359,-1000.0,0.00028004,5]
[358553149,1745248239368,-823.0,0.00028061,2]
[358553150,1745248239378,-1014.45,0.00028218,2]
[358553151,1745248239388,-1870.77432633,0.00028219,2]
[358553152,1745248239398,-500.0,0.000283,5]
[358553153,1745248239408,-1000.0,0.00028407,5]
[358553154,1745248239418,-1000.0,0.00028407,5]
[358553155,1745248239429,-506.63523273,0.00028407,5]
[358553156,1745248239442,-1000.0,0.00028407,2]
[358553157,1745248239452,-1000.0,0.00028407,5]
[358553158,1745248239462,-1014.45,0.00028492,2]
[358553159,1745248239472,-962.03609818,0.00028658,2]
[358553160,1745248239483,-1014.45,0.00028766,2]
[358553161,1745248239493,-4469.04426706,0.0002898,2]
[358553162,1745248239502,-1160.97396229,0.00029,7]
[358553163,1745248239512,-1160.97396229,0.00029,7]
[358553164,1745248239523,-214365.64855213,0.00029,7]
[358553165,1745248239533,-214365.64855213,0.00029,7]
[358553166,1745248239542,-41625.71052292,0.00029,7]
[358553167,1745248239551,-41625.71052292,0.00029,7]
[358553168,1745248239561,-420.65680271,0.00029,7]
[358553169,1745248239570,-160.0,0.00029,7]
[358553170,1745248239579,-1014.5536,0.0002904,2]
[358553171,1745248239589,-1500.0,0.000291,5]
[358553172,1745248239599,-250.0,0.00029521,5]
[358553173,1745248239608,-200.0,0.000299,120]
[358553174,1745248239618,-200.0,0.000299,120]
[358553175,1745248239628,-183.272,0.0003,2]
[358553176,1745248239638,-183.271,0.0003,2]
[358553177,1745248239647,-200.0,0.0003,2]
[358553178,1745248239657,-277.0,0.0003,2]
[358553179,1745248239667,-2000.0,0.0003,4]
[358553180,1745248239678,-350.0,0.00030068,5]
[358553181,1745248239688,-1152.0,0.0003008,2]
[358553182,1745248239697,-1000.0,0.00030352,5]
[358553183,1745248239707,-1000.0,0.00030352,5]
[358553184,1745248239717,-1000.0,0.00030352,5]
[358553185,1745248239727,-1000.0,0.00030352,5]
[358553186,1745248239736,-1000.0,0.00030352,5]
[358553187,1745248239746,-1000.0,0.00030352,5]
[358553188,1745248239756,-1000.0,0.00030352,5]
[358553189,1745248239765,-298.16591741,0.00030352,5]
[358553190,1745248239775,-1017.14731367,0.00030352,5]
[358553191,1745248239785,-1000.0,0.00030352,5]
[358553192,1745248239795,-463.40445878,0.00030616,5]
[358553193,1745248239805,-1152.0,0.00030651,2]
[358553194,1745248239815,-1800.0,0.00030744,5]
[358553195,1745248239825,-200.0,0.00031,6]
[358553196,1745248239835,-1002.004042,0.0003105,2]
[358553197,1745248239844,-183.54667076,0.00031369,7]
[358553198,1745248239854,-200.0,0.000316,120]
[358553199,1745248239864,-200.0,0.000316,120]
[358553200,1745248239874,-250.0,0.00031712,5]
[358553201,1745248239884,-155.0,0.00031933,5]
[358553202,1745248239893,-962.03609818,0.00031941,2]
[358553203,1745248239903,-275.95,0.00032,10]
[358553204,1745248239913,-2100.0,0.00032388,5]
[358553205,1745248239922,-265.85642887,0.00032481,5]
[358553206,1745248239933,-1015.74574384,0.000325,2]
[358553207,1745248239943,-250.0,0.00032852,5]
[358553208,1745248239952,-300.0,0.00032876,30]
[358553209,1745248239962,-300.0,0.00032876,30]
[358553210,1745248239972,-300.0,0.00032876,30]
[358553211,1745248239982,-300.0,0.00032876,30]
[358553212,1745248239992,-300.0,0.00032876,30]
[358553213,1745248240001,-300.0,0.00032876,30]
[358553214,1745248240011,-300.0,0.00032876,30]
[358553215,1745248240021,-300.0,0.00032876,30]
[358553216,1745248240030,-300.0,0.00032876,30]
[358553217,1745248240040,-300.0,0.00032876,30]
[358553218,1745248240050,-300.0,0.00032876,30]
[358553219,1745248240060,-300.0,0.00032876,30]
[358553220,1745248240069,-291.80053248,0.00032876,30]
[358553221,1745248240079,-157.08990772,0.00032877,2]
[358553223,1745248240090,-644.06,0.00033,30]
[358553226,1745248240101,-463.51,0.00033,30]
[358553227,1745248240111,-277.0,0.00033,2]
[358553228,1745248240120,-277.0,0.00033,2]
[358553229,1745248240130,-200.0,0.000333,120]
[358553230,1745248240140,-200.0,0.000333,120]
[358553232,1745248240149,-1613.0,0.00033481,3]
[358553233,1745248240159,-230.05671297,0.00033779,5]
[358553234,1745248240168,-686.26552735,0.00034032,5]
[358553235,1745248240178,-196.341091,0.00034247,120]
[358553236,1745248240188,-350.0,0.00034452,5]
[358553237,1745248240199,-1002.004042,0.00034703,2]
[358553238,1745248240208,-202.992,0.00035,5]
[358553239,1745248240218,-173.34,0.00035,10]
[358553240,1745248240228,-2000.0,0.00035,4]
[358553241,1745248240237,-962.03609818,0.00035225,2]
[358553242,1745248240247,-151.0,0.000354,15]
[358553243,1745248240256,-202.992,0.00035965,5]
[358553244,1745248240266,-1519.08,0.00036,7]
[358553245,1745248240275,-277.0,0.00036,2]
[358553246,1745248240285,-277.0,0.00036,2]
[358553247,1745248240295,-277.0,0.00036,2]
[358553249,1745248240305,-1800.81,0.00036057,2]
[358553251,1745248240315,-1800.81,0.00036057,2]
[358553253,1745248240325,-1800.81,0.00036057,2]
[358553254,1745248240335,-1800.81,0.00036057,2]
[358553255,1745248240344,-1800.81,0.00036057,2]
[358553256,1745248240354,-1800.81,0.00036057,2]
[358553257,1745248240363,-1800.81,0.00036057,2]
[358553258,1745248240373,-1800.81,0.00036057,2]
[358553259,1745248240382,-1800.81,0.00036057,2]
[358553260,1745248240392,-1800.81,0.00036057,2]
[358553261,1745248240403,-150.634,0.00036068,2]
[358553262,1745248240412,-270.262,0.00036068,2]
[358553263,1745248240422,-708.0,0.00036068,2]
[358553264,1745248240434,-547.498,0.00036068,2]
[358553265,1745248240447,-2246.0,0.00036068,2]
[358553266,1745248240457,-463.51,0.000362,30]
[358553267,1745248240467,-2258.0,0.00036572,3]
[358553268,1745248240476,-151.0,0.000367,13]
[358553269,1745248240486,-151.0,0.000369,11]
[358553270,1745248240495,-1015.52732521,0.00037,15]
[358553272,1745248240505,-644.06,0.00037,30]
[358553274,1745248240516,-169.494,0.00037012,47]
[358553276,1745248240526,-450.0,0.00037192,5]
[358553278,1745248240536,-881.6,0.00037889,2]
[358553280,1745248240545,-500.0,0.00037973,5]
[358553282,1745248240555,-78431.67935042,0.00038,15]
[358553336,1745248241069,-383.112,0.00036068,2]
[358553382,1745248246695,-19.888,0.00036068,2]
[358553383,1745248246706,-2200.0,0.00036068,7]
[358553384,1745248246716,-1335.91429161,0.00038,15]
[358553385,1745248246728,-669.19999995,0.00038,15]
[358553387,1745248363419,152.0,0.0002001,2]
[358553390,1745248771949,-250.0,0.0002067,2]
[358553391,1745248771973,-1000.0,0.0002077,2]
[358553392,1745248771997,-196.5665405,0.00021532,2]
[358553393,1745248772022,-330.9509399,0.00021773,2]
[358553394,1745248772047,-1138.20947849,0.00021773,2]
[358553395,1745248772069,-186.23842371,0.00021773,2]
[358553396,1745248772096,-618.53584042,0.00021804,2]
[358553397,1745248772124,-300.0,0.00021815,2]
[358553398,1745248772147,-300.0,0.00021815,2]
[358553399,1745248772170,-11711.45094625,0.00021816,2]
[358553400,1745248772194,-487.69130101,0.00021816,2]
[358553401,1745248772217,-234.16263256,0.00021816,2]
[358553402,1745248772246,-500.0,0.00021816,2]
[358553403,1745248772276,-500.0,0.00021816,2]
[358553404,1745248772305,-500.0,0.00021816,2]
[358553406,1745248772334,-500.0,0.00021816,2]
[358553407,1745248772363,-500.0,0.00021816,2]
[358553408,1745248772394,-500.0,0.00021816,2]
[358553409,1745248772425,-500.0,0.00021816,2]
[358553410,1745248772454,-500.0,0.00021816,2]
[358553411,1745248772484,-500.0,0.00021816,2]
[358553412,1745248772515,-500.0,0.00021816,2]
[358553413,1745248772546,-500.0,0.00021816,2]
[358553414,1745248772576,-500.0,0.00021816,2]
[358553415,1745248772610,-500.0,0.00021816,2]
[358553416,1745248772641,-500.0,0.00021816,2]
[358553417,1745248772673,-500.0,0.00021816,2]
[358553418,1745248772706,-500.0,0.00021816,2]
[358553419,1745248772735,-500.0,0.00021816,2]
[358553420,1745248772780,-500.0,0.00021816,2]
[358553421,1745248772813,-500.0,0.00021816,2]
[358553422,1745248772844,-500.0,0.00021816,2]
[358553423,1745248772876,-500.0,0.00021816,2]
[358553424,1745248772906,-500.0,0.00021816,2]
[358553425,1745248772935,-500.0,0.00021816,2]
[358553426,1745248772964,-289.05048198,0.00021816,2]
[358553427,1745248772994,-500.0,0.00021816,2]
[358553428,1745248773023,-500.0,0.00021816,2]
[358553429,1745248773230,-500.0,0.00021816,2]
[358553430,1745248773263,-500.0,0.00021816,2]
[358553431,1745248773297,-500.0,0.00021816,2]
[358553432,1745248773333,-478.9050482,0.00021816,2]
[358553433,1745248773366,-500.0,0.00021816,2]
[358553434,1745248773402,-500.0,0.00021816,2]
[358553435,1745248773435,-500.0,0.00021816,2]
[358553436,1745248773470,-500.0,0.00021816,2]
[358553437,1745248773502,-500.0,0.00021816,2]
[358553439,1745248782254,-280028.34825997,0.00021817,2]
[358553440,1745248874836,331.07003009,0.0002,2]
[358553448,1745249174164,495.0,0.0002001,2]
[358553450,1745249195304,429.9,0.0002001,2]
[358553451,1745249226085,1158.44269176,0.00019717,2]
[358553453,1745249276875,9370.28131188,0.00018,2]
[358553460,1745249324591,159.0153453,0.00019177,4]
[358553498,1745249432530,-250.0,0.00020805,2]
[358553499,1745249432540,-881.6,0.00021717,2]
[358553500,1745249432550,-300.0,0.00021915,2]
[358553501,1745249432560,-300.0,0.00021916,2]
[358553502,1745249432569,-500.0,0.00021917,2]
[358553503,1745249432579,-500.0,0.00021917,2]
[358553505,1745249432588,-500.0,0.00021917,2]
[358553507,1745249432598,-600.05,0.00021917,2]
[358553509,1745249432607,-500.0,0.00021917,2]
[358553511,1745249432616,-496.00563394,0.00021917,2]
[358553513,1745249432625,-500.0,0.00021917,2]
[358553515,1745249432634,-500.0,0.00021917,2]
[358553517,1745249432643,-500.0,0.00021917,2]
[358553519,1745249432653,-500.0,0.00021917,2]
[358553522,1745249432662,-194.83028064,0.00021917,2]
[358553524,1745249432671,-500.0,0.00021917,2]
[358553526,1745249432680,-497.57508845,0.00021917,2]
[358553528,1745249432689,-500.0,0.00021917,2]
[358553530,1745249432698,-500.0,0.00021917,2]
[358553532,1745249432707,-500.0,0.00021917,2]
[358553534,1745249432717,-500.0,0.00021917,2]
[358553536,1745249432726,-500.0,0.00021917,2]
[358553539,1745249432745,-500.0,0.00021917,2]
[358553542,1745249432755,-500.0,0.00021917,2]
[358553544,1745249432765,-500.0,0.00021917,2]
[358553545,1745249432775,-480.0658614,0.00021917,2]
[358553546,1745249432784,-368.22420397,0.00021917,2]
[358553547,1745249432794,-500.0,0.00021917,2]
[358553548,1745249432808,-500.0,0.00021917,2]
[358553549,1745249432818,-500.0,0.00021917,2]
[358553550,1745249432828,-439.56,0.00021917,2]